[Event "DVM U20 2019"]
[Site "Braunschweig"]
[Date "2019.12.28"]
[Round "4"]
[White "Kroschel, Anton"]
[Black "Schäfer, Melvin"]
[Result "1-0"]
[ECO "A05"]
[WhiteElo "1756"]
[BlackElo "1392"]
[Annotator "NA"]
[PlyCount "39"]
[EventDate "2019.12.27"]
[EventType "team-tourn"]
[EventRounds "7"]
[EventCountry "GER"]
[SourceTitle "playchess.com"]
[Source "ChessBase"]
[SourceQuality "1"]
[WhiteTeam "Lübecker SV"]
[BlackTeam "SG Trier"]
[TimeControl "40/5400+30:1800+30"]

1. Nf3 {[%emt 0:00:00]} Nf6 {[%emt 0:00:00]} 2. c4 {[%emt 0:00:00]} d6 {[%emt 0:00:48]} 3. d4 {[%emt 0:00:00]} Nbd7 {[%emt 0:00:32]} 4. Nc3 {[%emt 0:00:06]} g6 {[%emt 0:00:35]} 5. Bd2 {[%emt 0:01:28]} Bg7 {[%emt 0:00:18]} 6. g3 {[%emt 0:01:13]} O-O {[%emt 0:00:27]} 7. Bg2 {[%emt 0:00:03]} e5 {[%emt 0:02:29]} 8. dxe5 {[%emt 0:01:18]} dxe5 {[%emt 0:06:30]} 9. Qc2 {[%emt 0:00:28]} Ne8 {[%emt 0:02:39]} 10. O-O {[%emt 0:00:50]} f5 {[%emt 0:02:42]} 11. Ng5 {[%emt 0:00:56]} Nb6 {[%emt 0:09:02]} 12. c5 {[%emt 0:01:59]} h6 {[%emt 0:10:51]} 13. Qb3+ {[%emt 0:00:57]} Kh8 {[%emt 0:04:18]} 14. Nf7+ {[%emt 0:00:15]} Rxf7 {[%emt 0:00:44]} 15. Qxf7 {[%emt 0:00:12]} Nd6 {[%emt 0:06:13]} 16. cxd6 {[%emt 0:00:16]} Qxd6 {[%emt 0:00:31]} 17. Nb5 {[%emt 0:01:43]} Qxd2 {[%emt 0:07:21]} 18. Nxc7 {[%emt 0:02:26]} Rb8 {[%emt 0:03:05]} 19. Rad1 {[%emt 0:00:18]} Qg5 {[%emt 0:06:01]} 20. Ne8 {[%emt 0:00:17] normal} 1-0

[Event "DVM U20 2019"]
[Site "Braunschweig"]
[Date "2019.12.28"]
[Round "4"]
[White "Grining, Maria"]
[Black "Fischer, Patrick"]
[Result "1/2-1/2"]
[ECO "A40"]
[WhiteElo "1744"]
[BlackElo "1604"]
[Annotator "NA"]
[PlyCount "102"]
[EventDate "2019.12.27"]
[EventType "team-tourn"]
[EventRounds "7"]
[EventCountry "GER"]
[SourceTitle "playchess.com"]
[Source "ChessBase"]
[SourceQuality "1"]
[WhiteTeam "Karlsruher SF"]
[BlackTeam "SF HN-Biberach"]
[TimeControl "40/5400+30:1800+30"]

1. d4 {[%emt 0:00:00]} c6 {[%emt 0:00:00]} 2. Nf3 {[%emt 0:00:00]} d5 {[%emt 0:00:04]} 3. e3 {[%emt 0:00:08]} Bg4 {[%emt 0:00:38]} 4. c4 {[%emt 0:00:42]} e6 {[%emt 0:00:43]} 5. Be2 {[%emt 0:01:03]} dxc4 {[%emt 0:01:37]} 6. Bxc4 {[%emt 0:00:28]} Nf6 {[%emt 0:00:36]} 7. Nc3 {[%emt 0:01:22]} Nbd7 {[%emt 0:05:20]} 8. h3 {[%emt 0:02:27]} Bxf3 {[%emt 0:00:51]} 9. Qxf3 {[%emt 0:00:20]} Nb6 {[%emt 0:05:02]} 10. Bb3 {[%emt 0:05:46]} g6 {[%emt 0:03:07]} 11. e4 {[%emt 0:24:33]} Qxd4 {[%emt 0:11:15]} 12. Be3 {[%emt 0:01:08]} Qd8 {[%emt 0:00:01]} 13. Bg5 {[%emt 0:01:39]} Be7 {[%emt 0:00:10]} 14. Bh6 {[%emt 0:06:35]} Nbd7 {[%emt 0:07:24]} 15. Rd1 {[%emt 0:05:52]} Qc7 {[%emt 0:01:21]} 16. Bf4 {[%emt 0:03:54]} Qa5 {[%emt 0:02:58]} 17. O-O {[%emt 0:05:57]} O-O {[%emt 0:00:17]} 18. Bd6 {[%emt 0:02:51]} Bxd6 {[%emt 0:11:13]} 19. Rxd6 {[%emt 0:00:07]} Qe5 {[%emt 0:03:49]} 20. Qd3 {[%emt 0:05:28]} Nc5 {[%emt 0:02:49]} 21. f4 {[%emt 0:00:45]} Qh5 22. Qd4 {[%emt 0:02:10]} Nxb3 {[%emt 0:06:11]} 23. Qxf6 {[%emt 0:00:32]} Qc5+ {[%emt 0:00:30]} 24. Kh1 {[%emt 0:00:55]} Qxd6 {[%emt 0:00:48]} 25. axb3 {[%emt 0:00:18]} Qd8 {[%emt 0:01:05]} 26. Qe5 {[%emt 0:01:01]} Qe7 {[%emt 0:00:52]} 27. f5 {[%emt 0:01:13]} Qg5 {[%emt 0:06:14]} 28. Rf4 {[%emt 0:05:24]} exf5 {[%emt 0:01:35]} 29. exf5 {[%emt 0:02:24]} Rfe8 {[%emt 0:01:39]} 30. Qd4 {[%emt 0:00:33]} Re1+ {[%emt 0:06:16]} 31. Kh2 {[%emt 0:00:04]} Rd8 {[%emt 0:01:32]} 32. Qf2 {[%emt 0:03:10]} Qe7 {[%emt 0:01:48]} 33. fxg6 {[%emt 0:07:33]} hxg6 {[%emt 0:03:12]} 34. Rxf7 {[%emt 0:02:47]} Qxf7 {[%emt 0:04:46]} 35. Qxe1 {[%emt 0:00:15]} Qxb3 {[%emt 0:04:42]} 36. Qe7 {[%emt 0:01:28]} Rf8 {[%emt 0:00:49]} 37. Ne4 {[%emt 0:01:50]} Qf7 {[%emt 0:00:45]} 38. Qb4 {[%emt 0:02:38]} Qf4+ {[%emt 0:05:18]} 39. g3 {[%emt 0:00:12]} Qf7 {[%emt 0:00:46]} 40. Qd4 {[%emt 0:01:48]} Qe6 {[%emt 0:00:59]} 41. Qd3 {[%emt 0:04:20]} Re8 {[%emt 0:04:33]} 42. Nc3 {[%emt 0:00:28]} Qf5 {[%emt 0:03:08]} 43. Qc4+ {[%emt 0:02:21]} Kh7 {[%emt 0:00:16]} 44. Qh4+ {[%emt 0:00:31]} Kg7 45. Qd4+ {[%emt 0:00:33]} Qe5 {[%emt 0:07:23]} 46. Qxa7 {[%emt 0:01:00]} Qe3 {[%emt 0:00:23]} 47. Qxb7+ {[%emt 0:01:20]} Re7 {[%emt 0:00:14]} 48. Qxc6 {[%emt 0:00:22]} Rf7 {[%emt 0:05:15]} 49. h4 {[%emt 0:01:46]} Rf2+ {[%emt 0:00:27]} 50. Kh3 {[%emt 0:00:25]} Rxb2 {[%emt 0:00:42]} 51. Ne4 {[%emt 0:01:58] normal} Qb6 {[%emt 0:03:17] normal} 1/2-1/2

[Event "DVM U20 2019"]
[Site "Braunschweig"]
[Date "2019.12.28"]
[Round "4"]
[White "Eurich, Alexander"]
[Black "Wegmer, Leon"]
[Result "1-0"]
[ECO "B13"]
[WhiteElo "1741"]
[BlackElo "1939"]
[Annotator "NA"]
[PlyCount "72"]
[EventDate "2019.12.27"]
[EventType "team-tourn"]
[EventRounds "7"]
[EventCountry "GER"]
[SourceTitle "playchess.com"]
[Source "ChessBase"]
[SourceQuality "1"]
[WhiteTeam "SF HN-Biberach"]
[BlackTeam "Karlsruher SF"]
[TimeControl "40/5400+30:1800+30"]

1. e4 {[%emt 0:00:00]} c6 {[%emt 0:00:16]} 2. d4 {[%emt 0:00:46]} d5 {[%emt 0:00:01]} 3. exd5 {[%emt 0:00:29]} cxd5 {[%emt 0:00:01]} 4. Nf3 {[%emt 0:02:55]} Nc6 {[%emt 0:01:04]} 5. c3 {[%emt 0:03:28]} Nf6 {[%emt 0:00:06]} 6. Bd3 {[%emt 0:01:35]} Bg4 {[%emt 0:00:08]} 7. Bf4 {[%emt 0:01:41]} e6 {[%emt 0:00:11]} 8. Nbd2 {[%emt 0:01:41]} Bd6 {[%emt 0:00:15]} 9. Bxd6 {[%emt 0:01:44]} Qxd6 {[%emt 0:00:45]} 10. Qc2 {[%emt 0:01:01]} O-O {[%emt 0:00:37]} 11. O-O {[%emt 0:00:08]} a6 {[%emt 0:00:49]} 12. Rae1 {[%emt 0:01:34]} Rac8 {[%emt 0:01:56]} 13. a3 {[%emt 0:00:48]} b5 {[%emt 0:00:07]} 14. Qb1 {[%emt 0:01:08]} Bh5 {[%emt 0:05:23]} 15. Ne5 {[%emt 0:03:15]} Bg6 {[%emt 0:01:14]} 16. Ndf3 {[%emt 0:08:55]} Bxd3 {[%emt 0:00:16]} 17. Qxd3 {[%emt 0:00:14]} Na5 {[%emt 0:02:41]} 18. Nd2 {[%emt 0:19:43]} Nc4 {[%emt 0:03:17]} 19. Qc2 {[%emt 0:06:40]} Nd7 {[%emt 0:08:17]} 20. f4 {[%emt 0:05:07]} Ndb6 {[%emt 0:02:39]} 21. Nd3 {[%emt 0:05:20]} Nxd2 {[%emt 0:01:28]} 22. Qxd2 {[%emt 0:00:18]} Nc4 {[%emt 0:01:03]} 23. Qc1 {[%emt 0:03:26]} f6 {[%emt 0:00:12]} 24. Re2 {[%emt 0:03:56]} a5 {[%emt 0:02:45]} 25. Rfe1 {[%emt 0:00:38]} Rfe8 {[%emt 0:00:59]} 26. g3 {[%emt 0:01:46]} Re7 {[%emt 0:01:46]} 27. Nc5 {[%emt 0:04:50]} e5 {[%emt 0:01:11]} 28. b3 {[%emt 0:00:34]} Nb6 {[%emt 0:00:22]} 29. fxe5 {[%emt 0:00:10]} fxe5 {[%emt 0:00:05]} 30. Rxe5 {[%emt 0:00:18]} Rxe5 {[%emt 0:00:06]} 31. Rxe5 {[%emt 0:00:06]} Rxc5 {[%emt 0:01:31]} 32. Re8+ {[%emt 0:01:12]} Kf7 {[%emt 0:00:05]} 33. dxc5 {[%emt 0:00:24]} Qxc5+ {[%emt 0:00:46]} 34. Qe3 {[%emt 0:00:07]} Qxe3+ {[%emt 0:00:02]} 35. Rxe3 {[%emt 0:00:18]} a4 {[%emt 0:00:05] normal} 36. bxa4 {[%emt 0:01:05] normal} bxa4 {[%emt 0:00:26] normal} 1-0

[Event "DVM U20 2019"]
[Site "Braunschweig"]
[Date "2019.12.28"]
[Round "4"]
[White "Habersetzer, Elyse"]
[Black "Simrock, Manuel"]
[Result "1/2-1/2"]
[ECO "D03"]
[WhiteElo "1650"]
[BlackElo "1211"]
[Annotator "NA"]
[PlyCount "36"]
[EventDate "2019.12.27"]
[EventType "team-tourn"]
[EventRounds "7"]
[EventCountry "GER"]
[SourceTitle "playchess.com"]
[Source "ChessBase"]
[SourceQuality "1"]
[WhiteTeam "SK Turm Kleve"]
[BlackTeam "Sges Bensheim"]
[TimeControl "40/5400+30:1800+30"]

1. d4 {[%emt 0:00:00]} d5 {[%emt 0:00:00]} 2. Nf3 {[%emt 0:00:10]} Nf6 {[%emt 0:00:00]} 3. Bg5 {[%emt 0:00:19]} Bf5 {[%emt 0:00:00]} 4. e3 {[%emt 0:00:31]} e6 {[%emt 0:00:12]} 5. Be2 {[%emt 0:00:27]} c5 {[%emt 0:00:27]} 6. c3 {[%emt 0:00:40]} Nbd7 {[%emt 0:00:19]} 7. O-O {[%emt 0:00:46]} h6 {[%emt 0:00:11]} 8. Bh4 {[%emt 0:00:56]} Be7 {[%emt 0:02:48]} 9. Nbd2 {[%emt 0:03:37]} O-O {[%emt 0:01:33]} 10. Bg3 {[%emt 0:06:55]} Rc8 {[%emt 0:10:53]} 11. Ne5 {[%emt 0:13:55]} Nxe5 {[%emt 0:06:28]} 12. Bxe5 {[%emt 0:01:24]} Ne4 {[%emt 0:05:44]} 13. Nxe4 {[%emt 0:09:09]} Bxe4 {[%emt 0:00:20]} 14. Bg4 {[%emt 0:00:33]} Bd6 {[%emt 0:11:22]} 15. Bxd6 {[%emt 0:12:28]} Qxd6 {[%emt 0:01:12]} 16. Be2 {[%emt 0:02:04]} Rfd8 {[%emt 0:11:07]} 17. Qa4 {[%emt 0:04:03]} a6 {[%emt 0:01:45]} 18. Rac1 {[%emt 0:07:45] normal} Qc6 {[%emt 0:14:11] normal} 1/2-1/2

[Event "DVM U20 2019"]
[Site "Braunschweig"]
[Date "2019.12.28"]
[Round "4"]
[White "Schubert, Bernhard"]
[Black "Weisheit, Erik"]
[Result "0-1"]
[ECO "A52"]
[WhiteElo "1586"]
[BlackElo "1944"]
[Annotator "NA"]
[PlyCount "52"]
[EventDate "2019.12.27"]
[EventType "team-tourn"]
[EventRounds "7"]
[EventCountry "GER"]
[SourceTitle "playchess.com"]
[Source "ChessBase"]
[SourceQuality "1"]
[WhiteTeam "USV TU Dresden"]
[BlackTeam "SF Augsburg"]
[TimeControl "40/5400+30:1800+30"]

1. d4 {[%emt 0:00:00]} Nf6 {[%emt 0:00:00]} 2. c4 {[%emt 0:00:00]} e5 {[%emt 0:00:00]} 3. dxe5 {[%emt 0:01:33]} Ng4 {[%emt 0:00:04]} 4. Nf3 {[%emt 0:02:07]} Bc5 {[%emt 0:00:06]} 5. e3 {[%emt 0:01:47]} Nc6 {[%emt 0:00:07]} 6. Nc3 {[%emt 0:03:04]} O-O {[%emt 0:00:44]} 7. Be2 {[%emt 0:01:43]} Re8 {[%emt 0:00:19]} 8. O-O {[%emt 0:01:44]} a5 {[%emt 0:00:38]} 9. Nd4 {[%emt 0:04:50]} Ngxe5 {[%emt 0:00:12]} 10. Nxc6 {[%emt 0:00:46]} Nxc6 {[%emt 0:00:16]} 11. b3 {[%emt 0:03:09]} Ne5 {[%emt 0:00:49]} 12. Bb2 {[%emt 0:02:58]} Ra6 {[%emt 0:00:53]} 13. Ne4 {[%emt 0:06:10]} Bf8 {[%emt 0:00:11]} 14. Ng3 {[%emt 0:02:59]} d5 {[%emt 0:05:45]} 15. Qxd5 {[%emt 0:06:21]} Rd6 {[%emt 0:00:18]} 16. Qxa5 {[%emt 0:01:05]} b6 {[%emt 0:00:26]} 17. Qc3 {[%emt 0:07:20]} Qh4 {[%emt 0:01:06]} 18. Nh5 {[%emt 0:11:05]} Rh6 {[%emt 0:01:45]} 19. Qd4 {[%emt 0:03:27]} Rxh5 {[%emt 0:04:51]} 20. Bxh5 {[%emt 0:00:43]} Qxh5 {[%emt 0:00:17]} 21. Qd1 {[%emt 0:02:30]} Qh6 {[%emt 0:02:48]} 22. Bxe5 {[%emt 0:04:02]} Rxe5 {[%emt 0:00:10]} 23. Qf3 {[%emt 0:08:37]} Rh5 {[%emt 0:03:36]} 24. Qf4 {[%emt 0:04:06]} Qg6 {[%emt 0:07:35]} 25. Qg3 {[%emt 0:07:57]} Rg5 {[%emt 0:00:56]} 26. Qf3 {[%emt 0:00:44]} Bg4 {[%emt 0:00:29] normal} 0-1

[Event "DVM U20 2019"]
[Site "Braunschweig"]
[Date "2019.12.28"]
[Round "4"]
[White "Spaeth, Rene"]
[Black "Kokschenev, Michael"]
[Result "0-1"]
[ECO "B12"]
[WhiteElo "1584"]
[BlackElo "1552"]
[Annotator "NA"]
[PlyCount "132"]
[EventDate "2019.12.27"]
[EventType "team-tourn"]
[EventRounds "7"]
[EventCountry "GER"]
[SourceTitle "playchess.com"]
[Source "ChessBase"]
[SourceQuality "1"]
[WhiteTeam "SF HN-Biberach"]
[BlackTeam "Karlsruher SF"]
[TimeControl "40/5400+30:1800+30"]

1. e4 {[%emt 0:00:00]} c6 {[%emt 0:00:00]} 2. d4 {[%emt 0:00:00]} d5 {[%emt 0:00:00]} 3. e5 {[%emt 0:00:00]} Bf5 {[%emt 0:00:00]} 4. Ne2 {[%emt 0:00:50]} e6 {[%emt 0:00:07]} 5. Ng3 {[%emt 0:00:27]} Bg6 {[%emt 0:00:07]} 6. h4 {[%emt 0:00:08]} h6 {[%emt 0:00:07]} 7. h5 {[%emt 0:00:16]} Bh7 {[%emt 0:00:13]} 8. Bd3 {[%emt 0:00:07]} Bxd3 {[%emt 0:00:55]} 9. cxd3 {[%emt 0:00:41]} Bb4+ {[%emt 0:01:22]} 10. Bd2 {[%emt 0:08:39]} Bxd2+ {[%emt 0:01:21]} 11. Nxd2 {[%emt 0:00:22]} Ne7 {[%emt 0:00:11]} 12. Qb3 {[%emt 0:04:04]} Qb6 {[%emt 0:09:43]} 13. Qxb6 {[%emt 0:03:49]} axb6 {[%emt 0:00:05]} 14. a3 {[%emt 0:01:32]} Nd7 {[%emt 0:05:38]} 15. f4 {[%emt 0:03:41]} c5 {[%emt 0:05:20]} 16. Nf3 {[%emt 0:08:03]} Nc6 {[%emt 0:05:02]} 17. Ne2 {[%emt 0:03:01]} Ke7 {[%emt 0:08:32]} 18. Rc1 {[%emt 0:08:54]} Rhc8 {[%emt 0:10:19]} 19. Kf2 {[%emt 0:03:44]} Na5 {[%emt 0:05:32]} 20. Nd2 {[%emt 0:04:16]} b5 {[%emt 0:09:56]} 21. Ke3 {[%emt 0:05:02]} c4 {[%emt 0:03:26]} 22. Nc3 {[%emt 0:02:40]} cxd3 {[%emt 0:01:53]} 23. Nxb5 {[%emt 0:00:31]} Nc4+ {[%emt 0:01:22]} 24. Nxc4 {[%emt 0:00:24]} dxc4 {[%emt 0:00:55]} 25. Nd6 {[%emt 0:00:10]} Rc7 {[%emt 0:00:47]} 26. Nxc4 {[%emt 0:00:43]} Rac8 {[%emt 0:00:20]} 27. Kxd3 {[%emt 0:02:35]} b5 {[%emt 0:01:04]} 28. b3 {[%emt 0:00:42]} bxc4+ {[%emt 0:00:05]} 29. bxc4 {[%emt 0:00:06]} Nb6 {[%emt 0:00:11]} 30. c5 {[%emt 0:00:39]} Nd5 {[%emt 0:00:03]} 31. Ke4 {[%emt 0:00:50]} Ra8 {[%emt 0:02:28]} 32. Rh3 {[%emt 0:01:40]} f5+ {[%emt 0:02:52]} 33. exf6+ {[%emt 0:05:45]} Nxf6+ {[%emt 0:00:15]} 34. Kd3 {[%emt 0:00:48]} Rxa3+ {[%emt 0:00:12]} 35. Kc4 {[%emt 0:00:10]} Rxh3 {[%emt 0:00:20]} 36. gxh3 {[%emt 0:00:05]} Nxh5 {[%emt 0:01:40]} 37. Rf1 {[%emt 0:00:24]} Ng3 {[%emt 0:02:15]} 38. Re1 {[%emt 0:00:48]} Kd7 {[%emt 0:04:08]} 39. Re5 {[%emt 0:03:30]} g6 {[%emt 0:05:15]} 40. d5 {[%emt 0:00:47]} exd5+ {[%emt 0:01:00]} 41. Rxd5+ {[%emt 0:30:09]} Ke7 {[%emt 0:30:28]} 42. Re5+ {[%emt 0:01:44]} Kf6 {[%emt 0:02:02]} 43. Kb5 {[%emt 0:01:01]} Nf5 {[%emt 0:03:40]} 44. Kb6 {[%emt 0:00:35]} Rg7 {[%emt 0:02:28]} 45. c6 {[%emt 0:00:54]} Ne7 {[%emt 0:00:19]} 46. c7 {[%emt 0:01:29]} Rg8 {[%emt 0:01:14]} 47. Rc5 {[%emt 0:04:09]} Nc8+ {[%emt 0:00:46]} 48. Kb7 {[%emt 0:00:59]} Ke6 {[%emt 0:00:44]} 49. Rc1 {[%emt 0:00:29]} Kf6 {[%emt 0:02:04]} 50. Rd1 {[%emt 0:00:17]} Ke7 {[%emt 0:00:08]} 51. Re1+ {[%emt 0:00:15]} Kd7 {[%emt 0:01:08]} 52. Rd1+ {[%emt 0:00:14]} Nd6+ {[%emt 0:00:52]} 53. Kb6 {[%emt 0:00:17]} Rc8 {[%emt 0:01:02]} 54. Rc1 {[%emt 0:00:33]} Ne8 {[%emt 0:01:10]} 55. Rd1+ {[%emt 0:00:17]} Ke7 {[%emt 0:00:09]} 56. Rc1 {[%emt 0:02:28]} Rxc7 {[%emt 0:00:56]} 57. Re1+ {[%emt 0:00:30]} Kd7 {[%emt 0:00:26]} 58. Rxe8 {[%emt 0:00:12]} Kxe8 {[%emt 0:00:04]} 59. Kxc7 {[%emt 0:00:08]} Ke7 {[%emt 0:00:10]} 60. Kc6 {[%emt 0:01:58]} Ke6 {[%emt 0:00:17]} 61. Kc5 {[%emt 0:01:36]} Kf5 {[%emt 0:00:13]} 62. Kd5 {[%emt 0:01:26]} Kxf4 {[%emt 0:00:20]} 63. Ke6 {[%emt 0:00:14]} h5 {[%emt 0:02:51]} 64. h4 {[%emt 0:01:19]} Kg4 {[%emt 0:00:08]} 65. Kf6 {[%emt 0:00:06]} Kxh4 {[%emt 0:00:05]} 66. Kxg6 {[%emt 0:00:05]} Kg4 {[%emt 0:00:02] normal} 0-1

[Event "DVM U20 2019"]
[Site "Braunschweig"]
[Date "2019.12.28"]
[Round "4"]
[White "Peukert, Marc"]
[Black "Klenk, Sofie"]
[Result "1/2-1/2"]
[ECO "A06"]
[WhiteElo "1518"]
[BlackElo "1812"]
[Annotator "NA"]
[PlyCount "47"]
[EventDate "2019.12.27"]
[EventType "team-tourn"]
[EventRounds "7"]
[EventCountry "GER"]
[SourceTitle "playchess.com"]
[Source "ChessBase"]
[SourceQuality "1"]
[WhiteTeam "USV TU Dresden"]
[BlackTeam "SF Augsburg"]
[TimeControl "40/5400+30:1800+30"]

1. Nf3 {[%emt 0:00:00]} d5 {[%emt 0:00:00]} 2. c4 {[%emt 0:00:00]} c6 {[%emt 0:00:00]} 3. Nc3 {[%emt 0:00:36]} Nf6 {[%emt 0:00:03]} 4. d3 {[%emt 0:01:35]} Bf5 {[%emt 0:00:44]} 5. g3 {[%emt 0:01:16]} Nbd7 {[%emt 0:01:47]} 6. Bg2 {[%emt 0:05:39]} e5 {[%emt 0:03:59]} 7. Bg5 {[%emt 0:03:40]} d4 {[%emt 0:04:52]} 8. Nb1 {[%emt 0:03:37]} h6 {[%emt 0:01:42]} 9. Bxf6 {[%emt 0:00:34]} Qxf6 {[%emt 0:00:03]} 10. O-O {[%emt 0:01:38]} Bd6 {[%emt 0:02:58]} 11. Nbd2 {[%emt 0:05:18]} g5 {[%emt 0:15:16]} 12. Ne4 {[%emt 0:13:30]} Bxe4 {[%emt 0:01:26]} 13. dxe4 {[%emt 0:00:12]} Nc5 {[%emt 0:15:27]} 14. Qc2 {[%emt 0:06:31]} Qg6 {[%emt 0:00:47]} 15. b4 {[%emt 0:13:06]} Ne6 {[%emt 0:07:37]} 16. c5 {[%emt 0:01:26]} Bc7 {[%emt 0:00:05]} 17. Qd3 {[%emt 0:01:45]} O-O {[%emt 0:00:51]} 18. Rac1 {[%emt 0:02:41]} Qf6 {[%emt 0:02:24]} 19. b5 {[%emt 0:02:48]} cxb5 {[%emt 0:04:50]} 20. Qxb5 {[%emt 0:00:21]} Nd8 {[%emt 0:00:53]} 21. Qd7 {[%emt 0:07:52]} Qc6 {[%emt 0:06:31]} 22. Qf5 {[%emt 0:02:08]} Qe6 {[%emt 0:02:09]} 23. Bh3 {[%emt 0:04:50]} Re8 {[%emt 0:02:07]} 24. Kg2 {[%emt 0:01:43] normal} 1/2-1/2

[Event "DVM U20 2019"]
[Site "Braunschweig"]
[Date "2019.12.28"]
[Round "4"]
[White "Sequeira, Titus"]
[Black "Mundt, Alexandra"]
[Result "0-1"]
[ECO "C42"]
[WhiteElo "1472"]
[BlackElo "1775"]
[Annotator "NA"]
[PlyCount "64"]
[EventDate "2019.12.27"]
[EventType "team-tourn"]
[EventRounds "7"]
[EventCountry "GER"]
[SourceTitle "playchess.com"]
[Source "ChessBase"]
[SourceQuality "1"]
[WhiteTeam "SG Trier"]
[BlackTeam "Lübecker SV"]
[TimeControl "40/5400+30:1800+30"]

1. e4 {[%emt 0:00:00]} e5 {[%emt 0:00:00]} 2. Nf3 {[%emt 0:00:00]} Nf6 {[%emt 0:00:00]} 3. Nc3 {[%emt 0:00:00]} Bb4 {[%emt 0:00:00]} 4. Be2 {[%emt 0:02:04]} d6 {[%emt 0:00:44]} 5. O-O {[%emt 0:00:41]} Bxc3 {[%emt 0:02:36]} 6. dxc3 {[%emt 0:00:25]} Nxe4 {[%emt 0:00:08]} 7. Re1 {[%emt 0:02:18]} Nf6 {[%emt 0:00:16]} 8. Bg5 {[%emt 0:00:59]} O-O {[%emt 0:01:41]} 9. Bd3 {[%emt 0:01:21]} Bg4 {[%emt 0:01:59]} 10. h3 {[%emt 0:04:49]} Bh5 {[%emt 0:02:01]} 11. g4 {[%emt 0:16:18]} Bg6 {[%emt 0:00:27]} 12. Nh4 {[%emt 0:05:28]} Bxd3 {[%emt 0:03:44]} 13. Qxd3 {[%emt 0:00:12]} h6 {[%emt 0:02:08]} 14. Bd2 {[%emt 0:02:35]} Nbd7 {[%emt 0:08:54]} 15. Kh2 {[%emt 0:01:54]} Nc5 {[%emt 0:00:16]} 16. Qf5 {[%emt 0:04:26]} Nfe4 {[%emt 0:10:00]} 17. Nf3 {[%emt 0:03:00]} g6 {[%emt 0:00:56]} 18. Qxe4 {[%emt 0:02:07]} Nxe4 {[%emt 0:00:02]} 19. Rxe4 Qf6 {[%emt 0:00:43]} 20. Kg3 {[%emt 0:01:13]} Rfe8 {[%emt 0:09:16]} 21. Bxh6 {[%emt 0:00:59]} d5 {[%emt 0:00:10]} 22. Bg5 {[%emt 0:02:28]} Qb6 {[%emt 0:03:16]} 23. Rb4 {[%emt 0:02:57]} Qc6 {[%emt 0:02:03]} 24. Re1 {[%emt 0:01:40]} f6 {[%emt 0:03:03]} 25. Be3 {[%emt 0:02:05]} a5 {[%emt 0:02:02]} 26. Rb3 {[%emt 0:01:21]} f5 {[%emt 0:05:06]} 27. gxf5 {[%emt 0:01:54]} gxf5 {[%emt 0:00:08]} 28. Kh2 {[%emt 0:00:07]} d4 {[%emt 0:03:28]} 29. Rg1+ {[%emt 0:01:36]} Kh8 {[%emt 0:05:31] normal} 30. cxd4 {[%emt 0:03:11] normal} Qxf3 {[%emt 0:01:37] normal} 31. dxe5 {[%emt 0:00:37]} Qe4 {[%emt 0:00:40] normal} 32. f4 {[%emt 0:02:35]} Rg8 {[%emt 0:00:19] normal} 0-1

[Event "DVM U20 2019"]
[Site "Braunschweig"]
[Date "2019.12.28"]
[Round "4"]
[White "Meister, Konstantin"]
[Black "van Haaren, Laurens Jan"]
[Result "0-1"]
[ECO "B06"]
[WhiteElo "1256"]
[BlackElo "1482"]
[Annotator "NA"]
[PlyCount "44"]
[EventDate "2019.12.27"]
[EventType "team-tourn"]
[EventRounds "7"]
[EventCountry "GER"]
[SourceTitle "playchess.com"]
[Source "ChessBase"]
[SourceQuality "1"]
[WhiteTeam "Sges Bensheim"]
[BlackTeam "SK Turm Kleve"]
[TimeControl "40/5400+30:1800+30"]

1. e4 {[%emt 0:00:00]} g6 {[%emt 0:00:17]} 2. Nc3 {[%emt 0:00:00]} Bg7 {[%emt 0:00:24]} 3. Bc4 {[%emt 0:00:25]} e6 {[%emt 0:00:36]} 4. d4 {[%emt 0:01:16]} d6 {[%emt 0:04:32]} 5. Nf3 {[%emt 0:00:50]} Ne7 {[%emt 0:00:41]} 6. O-O {[%emt 0:03:00]} b6 {[%emt 0:02:38]} 7. d5 {[%emt 0:00:55]} e5 {[%emt 0:00:56]} 8. Bb5+ {[%emt 0:01:53]} Bd7 {[%emt 0:00:46]} 9. Qe2 {[%emt 0:02:37]} O-O {[%emt 0:05:33]} 10. Bxd7 {[%emt 0:03:04]} Nxd7 {[%emt 0:01:15]} 11. Bg5 {[%emt 0:00:09]} h6 {[%emt 0:00:20]} 12. Bh4 {[%emt 0:01:03]} a6 {[%emt 0:11:51]} 13. Qe3 {[%emt 0:07:27]} Qe8 {[%emt 0:09:00]} 14. Rad1 {[%emt 0:05:59]} f5 {[%emt 0:00:19]} 15. Bxe7 {[%emt 0:02:42]} Qxe7 {[%emt 0:00:34]} 16. g3 {[%emt 0:00:09]} f4 {[%emt 0:03:39]} 17. Qd2 {[%emt 0:01:43]} g5 {[%emt 0:02:59]} 18. g4 {[%emt 0:03:25]} Nf6 {[%emt 0:02:37]} 19. h3 {[%emt 0:01:09]} h5 {[%emt 0:05:24]} 20. Nxg5 {[%emt 0:02:59]} hxg4 {[%emt 0:02:22]} 21. Qd3 {[%emt 0:01:01]} Nh7 {[%emt 0:09:55]} 22. Ne6 {[%emt 0:09:07]} f3 {[%emt 0:00:48] normal} 0-1

[Event "DVM U20 2019"]
[Site "Braunschweig"]
[Date "2019.12.29"]
[Round "5"]
[White "Kololli, Martin"]
[Black "Engel, Luis"]
[Result "0-1"]
[ECO "B22"]
[WhiteElo "2343"]
[BlackElo "2531"]
[Annotator "ChessBase"]
[PlyCount "62"]
[EventDate "2019.12.27"]
[EventType "team-tourn"]
[EventRounds "7"]
[EventCountry "GER"]
[SourceTitle "playchess.com"]
[Source "ChessBase"]
[SourceQuality "1"]
[WhiteTeam "Lübecker SV"]
[BlackTeam "Hamburger SK"]
[TimeControl "40/5400+30:1800+30"]

1. e4 {[%emt 0:00:00]} c5 {[%emt 0:00:00]} 2. c3 {[%emt 0:00:00]} Nf6 {[%emt 0:00:00]} 3. e5 {[%emt 0:00:00]} Nd5 {[%emt 0:00:00]} 4. d4 {[%emt 0:00:00]} cxd4 {[%emt 0:00:00]} 5. Nf3 {[%emt 0:00:00]} Nc6 {[%emt 0:00:00]} 6. cxd4 {[%emt 0:00:00]} d6 {[%emt 0:00:05]} 7. Bc4 {[%emt 0:00:05]} dxe5 {[%emt 0:00:06]} 8. Nxe5 {[%emt 0:03:07]} e6 {[%emt 0:00:08]} 9. O-O {[%emt 0:01:19]} Be7 {[%emt 0:00:06]} 10. Nf3 {[%emt 0:18:14]} O-O {[%emt 0:01:04]} 11. Nc3 {[%emt 0:00:27]} Nxc3 {[%emt 0:02:32]} 12. bxc3 {[%emt 0:00:06]} b6 {[%emt 0:00:45]} 13. Re1 {[%emt 0:03:12]} Bb7 {[%emt 0:02:10]} 14. Bd3 {[%emt 0:00:43]} Rc8 {[%emt 0:02:56]} 15. Re3 {[%emt 0:10:07]} g6 {[%emt 0:11:00]} 16. h4 {[%emt 0:06:57]} Bf6 {[%emt 0:07:04]} 17. h5 {[%emt 0:02:12]} Re8 {[%emt 0:03:39]} 18. Ba3 {[%emt 0:05:46]} e5 {[%emt 0:09:28]} 19. hxg6 {[%emt 0:08:21]} hxg6 {[%emt 0:00:07]} 20. Be4 {[%emt 0:02:41]} exd4 {[%emt 0:01:28]} 21. cxd4 {[%emt 0:05:09]} Nxd4 {[%emt 0:09:45]} 22. Bxb7 {[%emt 0:02:27]} Rxe3 {[%emt 0:00:07]} 23. fxe3 {[%emt 0:19:04]} Nxf3+ {[%emt 0:00:06]} 24. Bxf3 {[%emt 0:00:17]} Bxa1 {[%emt 0:00:14]} 25. Qxa1 {[%emt 0:00:10]} Qd3 {[%emt 0:00:16]} 26. Bb2 {[%emt 0:05:34]} Qxe3+ {[%emt 0:00:13]} 27. Kh2 {[%emt 0:01:56]} Rc2 {[%emt 0:05:38] normal} 28. Kh3 {[%emt 0:03:54] normal} Qh6+ {[%emt 0:02:18]} 29. Kg3 {[%emt 0:00:09] normal} g5 {[%emt 0:00:51]} 30. Bg4 {[%emt 0:01:01] normal} Qh4+ {[%emt 0:00:12]} 31. Kf3 {[%emt 0:00:06]} Qf2+ {[%emt 0:00:17] normal} 0-1